[Event "*** Titled Tuesday Blitz"]
[Site "Chess.com"]
[Date "2020.05.19"]
[Round "8"]
[White "Borsuk_Konstantin"]
[Black "Sam_ChessMood"]
[Result "0-1"]
[WhiteElo "2636"]
[BlackElo "2872"]
[TimeControl "180+1"]
[EndTime "13:37:06 PDT"]
[Termination "Sam_ChessMood won on time"]

1. d4 {[%clk 0:03:00.9]} 1... Nf6 {[%clk 0:02:59.9]} 2. c4 {[%clk 0:02:59.6]}
2... e6 {[%clk 0:03:00]} 3. Nc3 {[%clk 0:02:58.7]} 3... Bb4 {[%clk 0:02:59.6]}
4. Qc2 {[%clk 0:02:58]} 4... O-O {[%clk 0:02:57.7]} 5. a3 {[%clk 0:02:57.5]}
5... Bxc3+ {[%clk 0:02:57.5]} 6. Qxc3 {[%clk 0:02:58.4]} 6... d5 {[%clk
0:02:57.2]} 7. Bg5 {[%clk 0:02:54.3]} 7... h6 {[%clk 0:02:51.5]} 8. Bxf6 {[%clk
0:02:53.8]} 8... Qxf6 {[%clk 0:02:50.7]} 9. cxd5 {[%clk 0:02:54.3]} 9... exd5
{[%clk 0:02:51.1]} 10. e3 {[%clk 0:02:54]} 10... c6 {[%clk 0:02:43.5]} 11. Nf3
{[%clk 0:02:44.5]} 11... Bg4 {[%clk 0:02:35.5]} 12. Ne5 {[%clk 0:02:40.9]} 12...
Be6 {[%clk 0:02:31.6]} 13. Be2 {[%clk 0:02:28.9]} 13... Nd7 {[%clk 0:02:30.2]}
14. Nxd7 {[%clk 0:02:11.3]} 14... Bxd7 {[%clk 0:02:29.5]} 15. O-O {[%clk
0:02:06.2]} 15... Qd6 {[%clk 0:02:28.2]} 16. g3 {[%clk 0:01:49.9]} 16... a5
{[%clk 0:02:18.1]} 17. b4 {[%clk 0:01:43.7]} 17... b5 {[%clk 0:02:00.3]} 18.
bxa5 {[%clk 0:01:16.7]} 18... Rfb8 {[%clk 0:01:36]} 19. Rfb1 {[%clk 0:01:07.6]}
19... Kf8 {[%clk 0:01:05.8]} 20. Qb4 {[%clk 0:00:57.8]} 20... Ke7 {[%clk
0:01:05.9]} 21. Kg2 {[%clk 0:00:42.5]} 21... Ra7 {[%clk 0:01:04.2]} 22. a4
{[%clk 0:00:41.8]} 22... Qxb4 {[%clk 0:01:00.8]} 23. Rxb4 {[%clk 0:00:40.5]}
23... Rxa5 {[%clk 0:01:01.1]} 24. Rab1 {[%clk 0:00:39.4]} 24... Kd6 {[%clk
0:00:59.1]} 25. axb5 {[%clk 0:00:33.3]} 25... cxb5 {[%clk 0:00:59.1]} 26. Bd3
{[%clk 0:00:21.6]} 26... Rb6 {[%clk 0:00:51.3]} 27. h4 {[%clk 0:00:20.4]} 27...
Kc7 {[%clk 0:00:47]} 28. Rc1+ {[%clk 0:00:19.4]} 28... Rc6 {[%clk 0:00:35.4]}
29. Rcb1 {[%clk 0:00:18]} 29... Rc4 {[%clk 0:00:32.3]} 30. Bxc4 {[%clk
0:00:16.9]} 30... dxc4 {[%clk 0:00:32.7]} 31. e4 {[%clk 0:00:16.3]} 31... Kd6
{[%clk 0:00:33.1]} 32. Kf3 {[%clk 0:00:15.6]} 32... Ra3+ {[%clk 0:00:31.7]} 33.
Kf4 {[%clk 0:00:15.7]} 33... Rd3 {[%clk 0:00:30.2]} 34. d5 {[%clk 0:00:15]}
34... Kc5 {[%clk 0:00:30.1]} 35. g4 {[%clk 0:00:09.8]} 35... c3 {[%clk
0:00:23.8]} 36. R4b3 {[%clk 0:00:03.1]} 36... c2 {[%clk 0:00:23.1]} 37. Rc1
{[%clk 0:00:01.8]} 37... Rxb3 {[%clk 0:00:22.7]} 38. Rxc2+ {[%clk 0:00:02.7]}
38... Kd6 {[%clk 0:00:19.3]} 39. g5 {[%clk 0:00:02.8]} 39... hxg5+ {[%clk
0:00:18.6]} 40. hxg5 {[%clk 0:00:03.7]} 40... Rb4 {[%clk 0:00:16.3]} 41. f3
{[%clk 0:00:01.5]} 41... Rc4 {[%clk 0:00:16.1]} 42. Ra2 {[%clk 0:00:01.5]} 42...
Ra4 {[%clk 0:00:13.6]} 43. Rb2 {[%clk 0:00:01.4]} 43... b4 {[%clk 0:00:14]} 44.
Rd2 {[%clk 0:00:01.7]} 44... b3 {[%clk 0:00:13]} 45. Rb2 {[%clk 0:00:01.5]}
45... Rb4 {[%clk 0:00:12.9]} 46. Ke3 {[%clk 0:00:02]} 46... Bb5 {[%clk
0:00:11.5]} 47. f4 {[%clk 0:00:01.2]} 47... Kc5 {[%clk 0:00:11]} 0-1

[Event "*** Titled Tuesday Blitz"]
[Site "Chess.com"]
[Date "2020.05.19"]
[Round "8"]
[White "MathiasWomacka"]
[Black "Sergey85Rodchenkov"]
[Result "0-1"]
[WhiteElo "2372"]
[BlackElo "2514"]
[TimeControl "180+1"]
[EndTime "13:37:06 PDT"]
[Termination "Sergey85Rodchenkov won on time"]

1. e4 {[%clk 0:03:00.9]} 1... c5 {[%clk 0:02:59.4]} 2. Nf3 {[%clk 0:03:00.2]}
2... d6 {[%clk 0:02:59.6]} 3. d4 {[%clk 0:03:00.2]} 3... cxd4 {[%clk 0:02:59.8]}
4. Nxd4 {[%clk 0:03:01.1]} 4... Nf6 {[%clk 0:02:59.7]} 5. Nc3 {[%clk 0:03:01]}
5... a6 {[%clk 0:03:00]} 6. Be2 {[%clk 0:03:01.2]} 6... e5 {[%clk 0:02:59.6]} 7.
Nb3 {[%clk 0:03:01.3]} 7... Be7 {[%clk 0:02:59.8]} 8. O-O {[%clk 0:03:01.2]}
8... Be6 {[%clk 0:02:59.2]} 9. f4 {[%clk 0:03:00.5]} 9... Qc7 {[%clk 0:02:59.2]}
10. Kh1 {[%clk 0:02:59.7]} 10... Nbd7 {[%clk 0:02:57.1]} 11. g4 {[%clk
0:02:59.3]} 11... h6 {[%clk 0:02:41]} 12. g5 {[%clk 0:02:59.1]} 12... hxg5
{[%clk 0:02:40.8]} 13. fxg5 {[%clk 0:03:00]} 13... Ng8 {[%clk 0:02:32.5]} 14.
Bg4 {[%clk 0:02:59.3]} 14... O-O-O {[%clk 0:02:25.9]} 15. Nd5 {[%clk 0:02:48.9]}
15... Bxd5 {[%clk 0:02:21.4]} 16. Qxd5 {[%clk 0:02:49.8]} 16... f6 {[%clk
0:02:17.8]} 17. g6 {[%clk 0:02:09.7]} 17... Kb8 {[%clk 0:02:11.3]} 18. Be3
{[%clk 0:02:06.1]} 18... f5 {[%clk 0:02:04.9]} 19. Bxf5 {[%clk 0:02:04.8]} 19...
Ngf6 {[%clk 0:02:05]} 20. Qd3 {[%clk 0:01:54.5]} 20... Nb6 {[%clk 0:01:49]} 21.
c4 {[%clk 0:01:44.3]} 21... Qxc4 {[%clk 0:01:29.3]} 22. Rfd1 {[%clk 0:01:42.9]}
22... Qxd3 {[%clk 0:01:27.4]} 23. Rxd3 {[%clk 0:01:43.8]} 23... Nc4 {[%clk
0:01:27.9]} 24. Bg1 {[%clk 0:01:33.2]} 24... d5 {[%clk 0:01:27.7]} 25. exd5
{[%clk 0:01:27.2]} 25... Nxd5 {[%clk 0:01:26]} 26. Rad1 {[%clk 0:01:24.2]} 26...
Nf4 {[%clk 0:01:25.1]} 27. Rxd8+ {[%clk 0:01:23.6]} 27... Rxd8 {[%clk
0:01:24.2]} 28. Rxd8+ {[%clk 0:01:23.3]} 28... Bxd8 {[%clk 0:01:23.4]} 29. Nc5
{[%clk 0:01:16.5]} 29... Nd6 {[%clk 0:01:15]} 30. Bc2 {[%clk 0:01:10.3]} 30...
Kc7 {[%clk 0:01:10.3]} 31. Be3 {[%clk 0:01:04.6]} 31... Bf6 {[%clk 0:01:05.9]}
32. b3 {[%clk 0:00:48.9]} 32... a5 {[%clk 0:01:02.2]} 33. Kg1 {[%clk 0:00:43.6]}
33... b6 {[%clk 0:00:59.6]} 34. Ne4 {[%clk 0:00:43]} 34... Nxe4 {[%clk
0:00:57.4]} 35. Bxe4 {[%clk 0:00:43.9]} 35... Ne2+ {[%clk 0:00:56.6]} 36. Kf2
{[%clk 0:00:39.5]} 36... Nc3 {[%clk 0:00:55.9]} 37. Kf3 {[%clk 0:00:39.6]} 37...
Nxa2 {[%clk 0:00:55.3]} 38. Kg4 {[%clk 0:00:38.4]} 38... Nc3 {[%clk 0:00:54.8]}
39. Kf5 {[%clk 0:00:31.1]} 39... Nxe4 {[%clk 0:00:51.7]} 40. Kxe4 {[%clk
0:00:30.8]} 40... b5 {[%clk 0:00:51.6]} 41. Kd5 {[%clk 0:00:29.6]} 41... a4
{[%clk 0:00:50.7]} 42. bxa4 {[%clk 0:00:29.8]} 42... bxa4 {[%clk 0:00:51]} 43.
Bc5 {[%clk 0:00:29.3]} 43... Kd7 {[%clk 0:00:49.1]} 44. Bf8 {[%clk 0:00:24]}
44... Ke8 {[%clk 0:00:47.6]} 45. Ba3 {[%clk 0:00:21.5]} 45... Kd7 {[%clk
0:00:44.6]} 46. Bf8 {[%clk 0:00:20.7]} 46... Ke8 {[%clk 0:00:44.2]} 47. Ba3
{[%clk 0:00:20.5]} 47... Be7 {[%clk 0:00:27]} 48. Bb2 {[%clk 0:00:20.1]} 48...
a3 {[%clk 0:00:27]} 49. Bxe5 {[%clk 0:00:16.2]} 49... Bf6 {[%clk 0:00:27.2]} 50.
Bxf6 {[%clk 0:00:11.3]} 50... gxf6 {[%clk 0:00:27.2]} 0-1

[Event "*** Titled Tuesday Blitz"]
[Site "Chess.com"]
[Date "2020.05.19"]
[Round "8"]
[White "MirMan90"]
[Black "Alexander_Zubov"]
[Result "0-1"]
[WhiteElo "2760"]
[BlackElo "2950"]
[TimeControl "180+1"]
[EndTime "13:37:09 PDT"]
[Termination "Alexander_Zubov won by resignation"]

1. e4 {[%clk 0:03:00.5]} 1... c5 {[%clk 0:02:58.9]} 2. Nf3 {[%clk 0:03:00.4]}
2... d6 {[%clk 0:02:59.2]} 3. d4 {[%clk 0:03:00.6]} 3... cxd4 {[%clk 0:02:59.5]}
4. Nxd4 {[%clk 0:03:01.2]} 4... Nf6 {[%clk 0:03:00]} 5. Nc3 {[%clk 0:03:01.9]}
5... a6 {[%clk 0:03:00.5]} 6. h3 {[%clk 0:03:02.4]} 6... e5 {[%clk 0:03:00.2]}
7. Nde2 {[%clk 0:03:01.7]} 7... h5 {[%clk 0:02:59.8]} 8. g3 {[%clk 0:02:59.8]}
8... Be7 {[%clk 0:02:59.3]} 9. Bg2 {[%clk 0:02:59.9]} 9... b5 {[%clk 0:02:58.5]}
10. Nd5 {[%clk 0:02:55.7]} 10... Nbd7 {[%clk 0:02:56.6]} 11. Nec3 {[%clk
0:02:53]} 11... Bb7 {[%clk 0:02:55.7]} 12. O-O {[%clk 0:02:49.9]} 12... O-O
{[%clk 0:02:42.5]} 13. Nxe7+ {[%clk 0:02:43.7]} 13... Qxe7 {[%clk 0:02:42]} 14.
Bg5 {[%clk 0:02:44.1]} 14... Qe6 {[%clk 0:02:39.4]} 15. a4 {[%clk 0:02:34]}
15... b4 {[%clk 0:02:33.7]} 16. Nd5 {[%clk 0:02:34.1]} 16... Nxd5 {[%clk
0:02:33]} 17. exd5 {[%clk 0:02:33.9]} 17... Qg6 {[%clk 0:02:31.5]} 18. h4 {[%clk
0:02:30.9]} 18... a5 {[%clk 0:02:06.2]} 19. c3 {[%clk 0:02:25.9]} 19... bxc3
{[%clk 0:02:02.1]} 20. bxc3 {[%clk 0:02:25.9]} 20... Rac8 {[%clk 0:02:00.4]} 21.
Rc1 {[%clk 0:02:16.2]} 21... Ba6 {[%clk 0:01:56.7]} 22. Re1 {[%clk 0:02:16]}
22... Nf6 {[%clk 0:01:21.2]} 23. Qb3 {[%clk 0:02:01.2]} 23... Bc4 {[%clk
0:01:08.4]} 24. Qb6 {[%clk 0:01:51]} 24... Nxd5 {[%clk 0:01:07.1]} 25. Qb7
{[%clk 0:01:23.8]} 25... Rc7 {[%clk 0:00:58.6]} 26. Qb2 {[%clk 0:01:15.1]} 26...
Rfc8 {[%clk 0:00:42.2]} 27. Red1 {[%clk 0:01:14.1]} 27... Qe6 {[%clk 0:00:35.7]}
28. Qd2 {[%clk 0:01:08]} 28... Rc5 {[%clk 0:00:35.2]} 29. Bf3 {[%clk 0:00:58.7]}
29... f6 {[%clk 0:00:34]} 30. Be3 {[%clk 0:00:56.9]} 30... Nxe3 {[%clk
0:00:34.5]} 31. Qxe3 {[%clk 0:00:55.6]} 31... Bd5 {[%clk 0:00:19.5]} 32. Bxh5
{[%clk 0:00:51.9]} 32... Rc4 {[%clk 0:00:19.6]} 33. Qd3 {[%clk 0:00:39.1]} 33...
Be4 {[%clk 0:00:19.5]} 34. Qxd6 {[%clk 0:00:37.1]} 34... Qxd6 {[%clk 0:00:20.4]}
35. Rxd6 {[%clk 0:00:36.8]} 35... Rxc3 {[%clk 0:00:18.4]} 36. Rxc3 {[%clk
0:00:35.6]} 36... Rxc3 {[%clk 0:00:19.3]} 37. Rd1 {[%clk 0:00:24.5]} 37... Rc4
{[%clk 0:00:17.7]} 38. f3 {[%clk 0:00:22.7]} 38... Bc2 {[%clk 0:00:16]} 39. Rd8+
{[%clk 0:00:22.6]} 39... Kh7 {[%clk 0:00:15.6]} 40. Bf7 {[%clk 0:00:20.6]} 40...
Rxa4 {[%clk 0:00:15.1]} 41. g4 {[%clk 0:00:20.7]} 41... g6 {[%clk 0:00:13.1]}
42. Rd7 {[%clk 0:00:20.1]} 42... Kh6 {[%clk 0:00:13]} 43. Bg8 {[%clk 0:00:20]}
43... g5 {[%clk 0:00:13.5]} 44. h5 {[%clk 0:00:20.6]} 44... Rf4 {[%clk
0:00:13.8]} 45. Bd5 {[%clk 0:00:20.2]} 45... e4 {[%clk 0:00:12.8]} 46. Bxe4
{[%clk 0:00:16]} 46... Bxe4 {[%clk 0:00:12.4]} 47. fxe4 {[%clk 0:00:16.3]} 47...
Rxg4+ {[%clk 0:00:13.3]} 48. Kf2 {[%clk 0:00:16.2]} 48... Rxe4 {[%clk
0:00:14.2]} 49. Rd6 {[%clk 0:00:15.7]} 49... Rf4+ {[%clk 0:00:15.1]} 50. Kg3
{[%clk 0:00:15.9]} 50... a4 {[%clk 0:00:16]} 0-1

[Event "*** Titled Tuesday Blitz"]
[Site "Chess.com"]
[Date "2020.05.19"]
[Round "8"]
[White "NikolaGry"]
[Black "Kobalia"]
[Result "0-1"]
[WhiteElo "2636"]
[BlackElo "2801"]
[TimeControl "180+1"]
[EndTime "13:37:09 PDT"]
[Termination "Kobalia won on time"]

1. b3 {[%clk 0:03:00.9]} 1... e5 {[%clk 0:02:57.8]} 2. Bb2 {[%clk 0:03:00.5]}
2... Nc6 {[%clk 0:02:58]} 3. c4 {[%clk 0:03:00.9]} 3... g6 {[%clk 0:02:57.5]} 4.
e3 {[%clk 0:03:00.9]} 4... Nge7 {[%clk 0:02:54.1]} 5. Nf3 {[%clk 0:02:59.4]}
5... Bg7 {[%clk 0:02:53.9]} 6. d4 {[%clk 0:02:59.5]} 6... exd4 {[%clk
0:02:51.8]} 7. Nxd4 {[%clk 0:02:59.2]} 7... O-O {[%clk 0:02:48.7]} 8. Nxc6
{[%clk 0:02:53.9]} 8... Nxc6 {[%clk 0:02:48.1]} 9. Bxg7 {[%clk 0:02:45]} 9...
Kxg7 {[%clk 0:02:47.8]} 10. Qd2 {[%clk 0:02:43.4]} 10... Qg5 {[%clk 0:02:43.6]}
11. Nc3 {[%clk 0:02:39.1]} 11... d6 {[%clk 0:02:43.7]} 12. h4 {[%clk 0:02:37.7]}
12... Qe5 {[%clk 0:02:32.8]} 13. h5 {[%clk 0:02:30.1]} 13... Re8 {[%clk
0:02:25.5]} 14. O-O-O {[%clk 0:02:11.1]} 14... g5 {[%clk 0:02:16.2]} 15. h6+
{[%clk 0:02:05.6]} 15... Kh8 {[%clk 0:02:15.4]} 16. Qb2 {[%clk 0:02:01.4]} 16...
Bg4 {[%clk 0:02:05.6]} 17. Rd2 {[%clk 0:01:43]} 17... Ne7 {[%clk 0:01:51]} 18.
Nd5 {[%clk 0:01:10.7]} 18... Qxb2+ {[%clk 0:01:43.1]} 19. Kxb2 {[%clk
0:01:09.5]} 19... Nxd5 {[%clk 0:01:43.2]} 20. Rxd5 {[%clk 0:00:58.2]} 20... f6
{[%clk 0:01:42.7]} 21. f3 {[%clk 0:00:51.5]} 21... Bd7 {[%clk 0:01:37.7]} 22. e4
{[%clk 0:00:49.1]} 22... b6 {[%clk 0:01:37.4]} 23. Rd2 {[%clk 0:00:39]} 23... a5
{[%clk 0:01:36.6]} 24. a3 {[%clk 0:00:38.8]} 24... Kg8 {[%clk 0:01:35]} 25. Bd3
{[%clk 0:00:37.5]} 25... Re5 {[%clk 0:01:31.5]} 26. Kc3 {[%clk 0:00:37]} 26...
Kf7 {[%clk 0:01:30.2]} 27. g3 {[%clk 0:00:35.8]} 27... Re7 {[%clk 0:01:21.1]}
28. f4 {[%clk 0:00:35]} 28... gxf4 {[%clk 0:01:16]} 29. gxf4 {[%clk 0:00:34.7]}
29... Bc6 {[%clk 0:01:16.1]} 30. Rg1 {[%clk 0:00:31.2]} 30... Rg8 {[%clk
0:01:14]} 31. Rxg8 {[%clk 0:00:30.2]} 31... Kxg8 {[%clk 0:01:14.2]} 32. Kd4
{[%clk 0:00:24.7]} 32... Kf8 {[%clk 0:01:12.6]} 33. f5 {[%clk 0:00:20.5]} 33...
Bb7 {[%clk 0:01:01.5]} 34. b4 {[%clk 0:00:19.9]} 34... axb4 {[%clk 0:00:57.5]}
35. axb4 {[%clk 0:00:19.6]} 35... c5+ {[%clk 0:00:57.9]} 36. Ke3 {[%clk
0:00:16.4]} 36... d5 {[%clk 0:00:50.6]} 37. cxd5 {[%clk 0:00:13.9]} 37... Bxd5
{[%clk 0:00:49.2]} 38. bxc5 {[%clk 0:00:14]} 38... bxc5 {[%clk 0:00:48.5]} 39.
Bc2 {[%clk 0:00:14.2]} 39... Bb7 {[%clk 0:00:44.2]} 40. Rd8+ {[%clk 0:00:12.7]}
40... Re8 {[%clk 0:00:42.8]} 41. Rxe8+ {[%clk 0:00:12.3]} 41... Kxe8 {[%clk
0:00:42.5]} 42. Kf4 {[%clk 0:00:12.5]} 42... Ke7 {[%clk 0:00:42.2]} 43. e5
{[%clk 0:00:12.7]} 43... Bd5 {[%clk 0:00:42.2]} 44. e6 {[%clk 0:00:08.3]} 44...
Kd6 {[%clk 0:00:40]} 45. Be4 {[%clk 0:00:08.1]} 45... Bc4 {[%clk 0:00:39.2]} 46.
Bc2 {[%clk 0:00:08.1]} 46... Bb5 {[%clk 0:00:39.3]} 47. Be4 {[%clk 0:00:08]}
47... Bc4 {[%clk 0:00:39.1]} 48. Bc2 {[%clk 0:00:08.1]} 48... Bb5 {[%clk
0:00:39.4]} 49. Be4 {[%clk 0:00:07.5]} 49... Ba4 {[%clk 0:00:25.1]} 50. Bd3
{[%clk 0:00:04.6]} 50... Bb3 {[%clk 0:00:23.7]} 51. Be2 {[%clk 0:00:03]} 51...
c4 {[%clk 0:00:21.7]} 52. Ke3 {[%clk 0:00:01.8]} 52... Bc2 {[%clk 0:00:20.9]}
0-1

[Event "*** Titled Tuesday Blitz"]
[Site "Chess.com"]
[Date "2020.05.19"]
[Round "8"]
[White "FontVella8"]
[Black "atwalcb"]
[Result "1-0"]
[WhiteElo "2545"]
[BlackElo "2356"]
[TimeControl "180+1"]
[EndTime "13:37:09 PDT"]
[Termination "FontVella8 won by resignation"]

1. e4 {[%clk 0:02:33.1]} 1... d6 {[%clk 0:02:59]} 2. d4 {[%clk 0:02:32.9]} 2...
Nf6 {[%clk 0:02:59.2]} 3. Nc3 {[%clk 0:02:33.1]} 3... Nbd7 {[%clk 0:02:59.5]} 4.
g3 {[%clk 0:02:30.1]} 4... e5 {[%clk 0:02:59.2]} 5. Nge2 {[%clk 0:02:29.5]} 5...
Be7 {[%clk 0:02:58.4]} 6. Bg2 {[%clk 0:02:29.4]} 6... O-O {[%clk 0:02:58.8]} 7.
O-O {[%clk 0:02:29.6]} 7... c6 {[%clk 0:02:58.9]} 8. h3 {[%clk 0:02:30]} 8...
Re8 {[%clk 0:02:58.7]} 9. Be3 {[%clk 0:02:29.5]} 9... Qc7 {[%clk 0:02:57.9]} 10.
a4 {[%clk 0:02:18.7]} 10... b6 {[%clk 0:02:56.1]} 11. g4 {[%clk 0:02:15.3]}
11... h6 {[%clk 0:02:31.4]} 12. Ng3 {[%clk 0:02:13.7]} 12... Nf8 {[%clk
0:02:28.8]} 13. dxe5 {[%clk 0:01:53.8]} 13... dxe5 {[%clk 0:02:27]} 14. Nf5
{[%clk 0:01:53.2]} 14... Ne6 {[%clk 0:02:20.3]} 15. Nd5 {[%clk 0:01:37.1]} 15...
cxd5 {[%clk 0:01:13.8]} 16. exd5 {[%clk 0:01:38]} 16... e4 {[%clk 0:01:14]} 17.
d6 {[%clk 0:01:28.7]} 17... Bxd6 {[%clk 0:01:11]} 18. Qxd6 {[%clk 0:01:27.7]}
18... Rd8 {[%clk 0:01:01.8]} 19. Qxc7 {[%clk 0:00:51.6]} 19... Nxc7 {[%clk
0:01:02.7]} 20. Rfd1 {[%clk 0:00:51.8]} 20... Bb7 {[%clk 0:00:56.5]} 21. c4
{[%clk 0:00:45.1]} 21... Ne6 {[%clk 0:00:47.8]} 22. b4 {[%clk 0:00:39.2]} 22...
Rxd1+ {[%clk 0:00:40.8]} 23. Rxd1 {[%clk 0:00:40.1]} 23... Rd8 {[%clk
0:00:40.5]} 24. Rxd8+ {[%clk 0:00:38.9]} 24... Nxd8 {[%clk 0:00:40.1]} 25. c5
{[%clk 0:00:31.1]} 25... bxc5 {[%clk 0:00:39.5]} 26. Bxc5 {[%clk 0:00:30.3]}
26... Ne6 {[%clk 0:00:34.2]} 27. Bxa7 {[%clk 0:00:28.7]} 27... Nf4 {[%clk
0:00:28.3]} 28. Be3 {[%clk 0:00:26.5]} 28... Ne2+ {[%clk 0:00:25.5]} 29. Kf1
{[%clk 0:00:23.5]} 29... Nc3 {[%clk 0:00:25.2]} 30. a5 {[%clk 0:00:19.9]} 30...
Nfd5 {[%clk 0:00:23.6]} 31. Bc5 {[%clk 0:00:18.3]} 31... Ba6+ {[%clk 0:00:22.9]}
32. Kg1 {[%clk 0:00:18.5]} 32... Kh7 {[%clk 0:00:18.8]} 33. Nd6 {[%clk
0:00:16.1]} 33... Bd3 {[%clk 0:00:13.9]} 34. Nxf7 {[%clk 0:00:13.6]} 34... Ne2+
{[%clk 0:00:13.9]} 35. Kh2 {[%clk 0:00:13.3]} 35... Nef4 {[%clk 0:00:13.2]} 36.
Ne5 {[%clk 0:00:12]} 36... Nxg2 {[%clk 0:00:13.2]} 37. Kxg2 {[%clk 0:00:10.9]}
37... Nf4+ {[%clk 0:00:13.5]} 38. Kg3 {[%clk 0:00:09.4]} 38... Ne2+ {[%clk
0:00:13.7]} 39. Kh2 {[%clk 0:00:08.9]} 39... Bb5 {[%clk 0:00:14]} 40. h4 {[%clk
0:00:07.4]} 40... Nf4 {[%clk 0:00:12.3]} 41. h5 {[%clk 0:00:05.9]} 41... Ne6
{[%clk 0:00:12.4]} 42. Kg3 {[%clk 0:00:06]} 42... Kg8 {[%clk 0:00:12]} 43. f3
{[%clk 0:00:05.9]} 43... exf3 {[%clk 0:00:11.6]} 44. Kxf3 {[%clk 0:00:06.8]}
44... Ng5+ {[%clk 0:00:11.9]} 45. Kf4 {[%clk 0:00:06.8]} 45... Ne6+ {[%clk
0:00:12.2]} 46. Ke4 {[%clk 0:00:07]} 46... Ng5+ {[%clk 0:00:11.9]} 47. Kd5
{[%clk 0:00:07.2]} 47... Ba6 {[%clk 0:00:09.8]} 48. Kc6 {[%clk 0:00:06.7]} 48...
Ne4 {[%clk 0:00:10.2]} 49. b5 {[%clk 0:00:06.7]} 49... Bc8 {[%clk 0:00:09.8]}
50. a6 {[%clk 0:00:06.5]} 50... Nf6 {[%clk 0:00:09.4]} 51. a7 {[%clk 0:00:06.3]}
1-0

[Event "*** Titled Tuesday Blitz"]
[Site "Chess.com"]
[Date "2020.05.19"]
[Round "8"]
[White "wanyaland"]
[Black "ValeriyGrinev"]
[Result "0-1"]
[WhiteElo "2340"]
[BlackElo "2535"]
[TimeControl "180+1"]
[EndTime "13:37:10 PDT"]
[Termination "ValeriyGrinev won on time"]

1. d4 {[%clk 0:03:00.9]} 1... Nf6 {[%clk 0:02:59.4]} 2. c4 {[%clk 0:03:01.8]}
2... c5 {[%clk 0:02:59.8]} 3. d5 {[%clk 0:03:00.8]} 3... e6 {[%clk 0:03:00.2]}
4. Nc3 {[%clk 0:02:59.6]} 4... exd5 {[%clk 0:03:00.7]} 5. cxd5 {[%clk
0:03:00.5]} 5... d6 {[%clk 0:03:01.5]} 6. g3 {[%clk 0:03:00.8]} 6... g6 {[%clk
0:03:01.2]} 7. Bg2 {[%clk 0:03:01.5]} 7... Bg7 {[%clk 0:03:01.9]} 8. Nf3 {[%clk
0:03:01.8]} 8... O-O {[%clk 0:03:02.4]} 9. O-O {[%clk 0:03:02.7]} 9... a6 {[%clk
0:03:02.5]} 10. a4 {[%clk 0:03:01.7]} 10... Nbd7 {[%clk 0:03:03]} 11. Bf4 {[%clk
0:03:01.3]} 11... Qe7 {[%clk 0:03:02.6]} 12. Nd2 {[%clk 0:02:58.2]} 12... Nh5
{[%clk 0:03:00.6]} 13. Be3 {[%clk 0:02:58.3]} 13... f5 {[%clk 0:02:56.5]} 14.
Nc4 {[%clk 0:02:52.5]} 14... Ne5 {[%clk 0:02:55.3]} 15. Nxe5 {[%clk 0:02:42.8]}
15... Bxe5 {[%clk 0:02:48.4]} 16. Bh6 {[%clk 0:02:39.7]} 16... Re8 {[%clk
0:02:45.6]} 17. e4 {[%clk 0:02:37.8]} 17... f4 {[%clk 0:02:41.9]} 18. Bf3 {[%clk
0:02:32.9]} 18... Bh3 {[%clk 0:02:36.2]} 19. Re1 {[%clk 0:02:32]} 19... Qf7
{[%clk 0:02:33.3]} 20. g4 {[%clk 0:02:13]} 20... Nf6 {[%clk 0:02:25.7]} 21. Kh1
{[%clk 0:02:13]} 21... Qd7 {[%clk 0:02:18.8]} 22. Rg1 {[%clk 0:02:06.9]} 22...
b5 {[%clk 0:02:01.4]} 23. g5 {[%clk 0:01:57.6]} 23... Bxc3 {[%clk 0:01:50.5]}
24. gxf6 {[%clk 0:00:59.1]} 24... Bxf6 {[%clk 0:01:47.3]} 25. Bxf4 {[%clk
0:00:58.8]} 25... Bxb2 {[%clk 0:01:43.7]} 26. Rb1 {[%clk 0:00:57]} 26... Bd4
{[%clk 0:01:44]} 27. Qd2 {[%clk 0:00:54]} 27... Rf8 {[%clk 0:01:40.1]} 28. Rg3
{[%clk 0:00:54]} 28... Rf7 {[%clk 0:01:29.6]} 29. e5 {[%clk 0:00:36.5]} 29...
dxe5 {[%clk 0:01:26]} 30. Bh6 {[%clk 0:00:35.4]} 30... Rxf3 {[%clk 0:01:21.6]}
31. Rxf3 {[%clk 0:00:33.4]} 31... Qxd5 {[%clk 0:01:22]} 32. Qe2 {[%clk
0:00:28.1]} 32... Bg4 {[%clk 0:01:20.3]} 33. Kg2 {[%clk 0:00:26.5]} 33... b4
{[%clk 0:01:05.9]} 34. Kg3 {[%clk 0:00:23.4]} 34... Bxf3 {[%clk 0:01:05.4]} 35.
Qxf3 {[%clk 0:00:24.3]} 35... Qxf3+ {[%clk 0:01:04.8]} 36. Kxf3 {[%clk
0:00:25.2]} 36... a5 {[%clk 0:01:04.9]} 37. Ke4 {[%clk 0:00:22.6]} 37... c4
{[%clk 0:01:04.7]} 38. f4 {[%clk 0:00:19.1]} 38... c3 {[%clk 0:01:01.2]} 39.
fxe5 {[%clk 0:00:19.3]} 39... c2 {[%clk 0:01:00.5]} 40. Rf1 {[%clk 0:00:16.7]}
40... Bc5 {[%clk 0:00:57.2]} 41. Kd3 {[%clk 0:00:14.3]} 41... b3 {[%clk
0:00:57.6]} 42. Kc3 {[%clk 0:00:14]} 42... Rb8 {[%clk 0:00:57.9]} 43. Bc1 {[%clk
0:00:11.9]} 43... Bf8 {[%clk 0:00:51.5]} 44. Bb2 {[%clk 0:00:10.2]} 44... Bg7
{[%clk 0:00:50.3]} 45. Kc4 {[%clk 0:00:10.5]} 45... g5 {[%clk 0:00:48.1]} 46. h3
{[%clk 0:00:09.6]} 46... h5 {[%clk 0:00:47.8]} 47. Rg1 {[%clk 0:00:08.8]} 47...
Kf7 {[%clk 0:00:48.3]} 48. Rxg5 {[%clk 0:00:06.3]} 48... c1=Q+ {[%clk
0:00:46.3]} 49. Bxc1 {[%clk 0:00:04.1]} 49... Rc8+ {[%clk 0:00:47]} 50. Kxb3
{[%clk 0:00:03.3]} 50... Rxc1 {[%clk 0:00:47.9]} 51. Rxh5 {[%clk 0:00:02.4]}
51... Re1 {[%clk 0:00:45]} 52. e6+ {[%clk 0:00:02.1]} 52... Kxe6 {[%clk
0:00:44.6]} 53. Rxa5 {[%clk 0:00:02.6]} 53... Re3+ {[%clk 0:00:44.8]} 54. Kc4
{[%clk 0:00:02.7]} 54... Rc3+ {[%clk 0:00:44.2]} 55. Kb5 {[%clk 0:00:01.4]}
55... Rxh3 {[%clk 0:00:45.1]} 56. Ra6+ {[%clk 0:00:01.5]} 56... Kd5 {[%clk
0:00:45]} 0-1